fUST/lending_fUST_20240307
["ID","MTS","AMOUNT","RATE_DAILY","PERIOD"]
[317348949,1709757040442,-2553.44,0.00024657,2]
[317348950,1709757040451,-2553.44,0.00024657,2]
[317348951,1709757040460,-2553.44,0.00024657,2]
[317348952,1709757040470,-500.0,0.00024657,2]
[317348953,1709757040479,-500.0,0.00024657,2]
[317348954,1709757040488,-500.0,0.00024657,2]
[317348955,1709757040497,-500.0,0.00024657,2]
[317348956,1709757040506,-500.0,0.00024657,2]
[317348957,1709757040515,-453.06,0.00024657,2]
[317348958,1709757040524,-500.0,0.00024657,2]
[317348959,1709757040534,-500.0,0.00024657,2]
[317348960,1709757040542,-500.0,0.00024657,2]
[317348961,1709757040553,-308.80024834,0.00024657,2]
[317348962,1709757040562,-609.77149269,0.00024657,2]
[317348963,1709757040571,-1648.63,0.00024657,2]
[317348964,1709757040581,-1648.63,0.00024657,2]
[317348965,1709757040590,-411.97111518,0.00024657,2]
[317348966,1709757040599,-517.83737153,0.00024657,2]
[317348967,1709757040608,-500.0,0.00024657,2]
[317348968,1709757040617,-500.0,0.00024657,2]
[317348969,1709757040627,-396.24733036,0.00024657,2]
[317348970,1709757040636,-500.0,0.00024657,2]
[317348971,1709757040645,-500.0,0.00024657,2]
[317348972,1709757040654,-500.0,0.00024657,2]
[317348973,1709757040663,-500.0,0.00024657,2]
[317348974,1709757040672,-615.80805642,0.00024657,2]
[317348975,1709757040682,-380.0,0.00024658,2]
[317348976,1709757040691,-306.9615974,0.000247,2]
[317348977,1709757040701,-196.23222196,0.00024757,2]
[317348978,1709757040710,-196.23222196,0.00024794,2]
[317348979,1709757040720,-500.0,0.00024797,2]
[317348980,1709757040729,-364.20386998,0.00024797,2]
[317348981,1709757040738,-501.55701966,0.00024797,2]
[317348982,1709757040747,-500.0,0.00024797,2]
[317348983,1709757040756,-2553.44,0.00024797,2]
[317348984,1709757040766,-1648.63,0.00024797,2]
[317348985,1709757040775,-500.0,0.00024797,2]
[317348986,1709757040784,-500.0,0.00024798,2]
[317348988,1709757040793,-500.0,0.00024798,2]
[317348989,1709757040802,-500.0,0.00024798,2]
[317348990,1709757040814,-500.0,0.00024798,2]
[317348991,1709757040827,-500.0,0.00024798,2]
[317348992,1709757040836,-500.0,0.00024798,2]
[317348993,1709757040845,-2403.39,0.00024798,2]
[317348994,1709757040855,-500.0,0.00024798,2]
[317348995,1709757040865,-500.0,0.00024798,2]
[317348996,1709757040874,-500.0,0.00024798,2]
[317348997,1709757040884,-500.0,0.00024798,2]
[317348998,1709757040893,-500.0,0.00024798,2]
[317348999,1709757040903,-5944.35,0.00024803,2]
[317349000,1709757040912,-1744.61,0.00024803,2]
[317349001,1709757040922,-500.0,0.00024803,2]
[317349002,1709757040931,-2545.97,0.00024803,2]
[317349003,1709757040941,-196.23222196,0.00024831,2]
[317349004,1709757040950,-30000.0,0.00024844,5]
[317349005,1709757040960,-1135.0,0.00024855,2]
[317349006,1709757040969,-1135.0,0.00024855,2]
[317349007,1709757040978,-1000.0,0.00024862,7]
[317349008,1709757040987,-500.0,0.00024867,2]
[317349009,1709757040996,-2553.44,0.00024867,2]
[317349010,1709757041005,-500.0,0.00024867,2]
[317349011,1709757041014,-500.0,0.00024868,2]
[317349012,1709757041023,-1648.63,0.00024868,2]
[317349013,1709757041032,-1000.0,0.00024869,7]
[317349014,1709757041042,-174.0,0.000249,2]
[317349015,1709757041051,-5944.35,0.00024926,2]
[317349016,1709757041070,-1744.61,0.00024926,2]
[317349017,1709757041080,-500.0,0.00024926,2]
[317349018,1709757041090,-2545.97,0.00024926,2]
[317349019,1709757041099,-567.1268785,0.00024926,2]
[317349020,1709757041108,-500.0,0.00024927,2]
[317349021,1709757041117,-500.0,0.00024927,2]
[317349022,1709757041126,-500.0,0.00024927,2]
[317349023,1709757041135,-500.0,0.00024927,2]
[317349024,1709757041145,-500.0,0.00024927,2]
[317349025,1709757041154,-500.0,0.00024927,2]
[317349026,1709757041164,-5944.35,0.00024927,2]
[317349027,1709757041172,-5944.35,0.00024927,2]
[317349028,1709757041182,-5944.35,0.00024927,2]
[317349029,1709757041191,-5944.35,0.00024927,2]
[317349030,1709757041200,-2403.39,0.00024927,2]
[317349031,1709757041209,-500.0,0.00024927,2]
[317349032,1709757041218,-500.0,0.00024927,2]
[317349033,1709757041228,-504.84431903,0.00024927,2]
[317349034,1709757041237,-1744.61,0.00024927,2]
[317349035,1709757041246,-1744.61,0.00024927,2]
[317349036,1709757041255,-1744.61,0.00024927,2]
[317349037,1709757041264,-1744.61,0.00024927,2]
[317349038,1709757041273,-500.0,0.00024927,2]
[317349039,1709757041282,-500.0,0.00024927,2]
[317349040,1709757041291,-500.0,0.00024927,2]
[317349041,1709757041301,-500.0,0.00024927,2]
[317349042,1709757041312,-500.0,0.00024927,2]
[317349043,1709757041321,-500.0,0.00024927,2]
[317349044,1709757041330,-2545.97,0.00024927,2]
[317349045,1709757041340,-2545.97,0.00024927,2]
[317349046,1709757041349,-2545.97,0.00024927,2]
[317349047,1709757041359,-2545.97,0.00024927,2]
[317349048,1709757041368,-500.0,0.00024927,2]
[317349049,1709757041378,-500.0,0.00024927,2]
[317349050,1709757041387,-225.96401229,0.00024927,2]
[317349051,1709757041396,-500.0,0.00024927,2]
[317349052,1709757041406,-244.20662702,0.00024927,2]
[317349053,1709757041415,-2553.44,0.00024927,2]
[317349054,1709757041425,-2553.44,0.00024927,2]
[317349055,1709757041434,-2553.44,0.00024927,2]
[317349056,1709757041443,-2553.44,0.00024927,2]
[317349057,1709757041452,-2553.44,0.00024927,2]
[317349058,1709757041461,-2553.44,0.00024927,2]
[317349059,1709757041471,-2553.44,0.00024927,2]
[317349060,1709757041480,-2553.44,0.00024927,2]
[317349061,1709757041489,-500.0,0.00024927,2]
[317349062,1709757041498,-1648.63,0.00024927,2]
[317349063,1709757041507,-1648.63,0.00024927,2]
[317349064,1709757041516,-1648.63,0.00024927,2]
[317349065,1709757041525,-1648.63,0.00024927,2]
[317349066,1709757041534,-1648.63,0.00024927,2]
[317349067,1709757041543,-1648.63,0.00024927,2]
[317349068,1709757041552,-1648.63,0.00024927,2]
[317349069,1709757041563,-500.0,0.00024927,2]
[317349070,1709757041572,-197.87242991,0.00024927,2]
[317349071,1709757041582,-1563.02304666,0.00024927,2]
[317349072,1709757041591,-875.00993996,0.00024927,2]
[317349073,1709757041600,-506.41938098,0.00024928,2]
[317349074,1709757041610,-500.0,0.00024928,2]
[317349075,1709757041619,-500.0,0.00024928,2]
[317349078,1709757041701,-500.0,0.00024928,2]
[317349079,1709757041711,-500.0,0.00024928,2]
[317349080,1709757041722,-500.0,0.00024928,2]
[317349081,1709757041731,-500.0,0.00024928,2]
[317349082,1709757041740,-502.78798814,0.00024928,2]
[317349083,1709757041750,-500.0,0.00024928,2]
[317349084,1709757041759,-500.0,0.00024928,2]
[317349085,1709757041769,-500.0,0.00024928,2]
[317349086,1709757041780,-500.0,0.00024928,2]
[317349087,1709757041789,-375.64072038,0.00024928,2]
[317349088,1709757041799,-502.92093641,0.00024928,2]
[317349090,1709757041812,-500.0,0.00024928,2]
[317349091,1709757041822,-500.0,0.00024928,2]
[317349092,1709757041831,-500.0,0.00024928,2]
[317349093,1709757041840,-500.0,0.00024928,2]
[317349094,1709757041850,-500.0,0.00024928,2]
[317349095,1709757041860,-500.0,0.00024928,2]
[317349096,1709757041870,-500.0,0.00024928,2]
[317349097,1709757041879,-500.0,0.00024928,2]
[317349098,1709757041889,-500.0,0.00024928,2]
[317349099,1709757041899,-500.0,0.00024928,2]
[317349100,1709757041909,-500.0,0.00024928,2]
[317349101,1709757041918,-500.0,0.00024928,2]
[317349102,1709757041928,-500.0,0.00024928,2]
[317349103,1709757041937,-500.0,0.00024928,2]
[317349104,1709757041947,-500.0,0.00024928,2]
[317349105,1709757041956,-500.0,0.00024928,2]
[317349106,1709757041966,-500.0,0.00024928,2]
[317349107,1709757041976,-500.0,0.00024928,2]
[317349108,1709757041986,-500.0,0.00024928,2]
[317349109,1709757041996,-500.0,0.00024928,2]
[317349110,1709757042005,-500.0,0.00024928,2]
[317349111,1709757042014,-500.0,0.00024928,2]
[317349112,1709757042023,-500.0,0.00024928,2]
[317349113,1709757042033,-500.0,0.00024928,2]
[317349114,1709757042042,-500.0,0.00024928,2]
[317349115,1709757042051,-585.14033652,0.00024928,2]
[317349116,1709757042063,-500.0,0.00024928,2]
[317349117,1709757042072,-500.0,0.00024928,2]
[317349118,1709757042083,-500.0,0.00024928,2]
[317349119,1709757042094,-500.0,0.00024928,2]
[317349120,1709757042105,-510.7523727,0.00024928,2]
[317349121,1709757042115,-630.72380376,0.00024928,2]
[317349122,1709757042127,-500.0,0.00024928,2]
[317349123,1709757042139,-500.0,0.00024928,2]
[317349124,1709757042149,-500.0,0.00024928,2]
[317349125,1709757042160,-500.0,0.00024928,2]
[317349126,1709757042171,-500.0,0.00024928,2]
[317349127,1709757042181,-500.0,0.00024928,2]
[317349128,1709757042192,-500.0,0.00024928,2]
[317349129,1709757042201,-500.0,0.00024928,2]
[317349130,1709757042211,-500.0,0.00024928,2]
[317349131,1709757042220,-500.0,0.00024928,2]
[317349132,1709757042231,-500.0,0.00024928,2]
[317349133,1709757042242,-410.44120222,0.00024928,2]
[317349134,1709757042252,-500.0,0.00024928,2]
[317349135,1709757042262,-500.0,0.00024928,2]
[317349136,1709757042273,-500.0,0.00024928,2]
[317349137,1709757042283,-427.94969701,0.00024928,2]
[317349138,1709757042293,-167.36856596,0.00024928,2]
[317349139,1709757042303,-500.0,0.00024928,2]
[317349140,1709757042313,-500.0,0.00024928,2]
[317349141,1709757042323,-505.8263943,0.00024928,2]
[317349142,1709757042333,-500.0,0.00024928,2]
[317349143,1709757042342,-500.0,0.00024928,2]
[317349144,1709757042351,-500.0,0.00024928,2]
[317349145,1709757042360,-500.0,0.00024928,2]
[317349146,1709757042370,-500.0,0.00024928,2]
[317349147,1709757042380,-1024.87,0.00024928,2]
[317349148,1709757042389,-1024.87,0.00024928,2]
[317349149,1709757042398,-1024.87,0.00024928,2]
[317349150,1709757042407,-1024.87,0.00024928,2]
[317349151,1709757042417,-1024.87,0.00024928,2]
[317349152,1709757042426,-1024.87,0.00024928,2]
[317349153,1709757042435,-1024.87,0.00024928,2]
[317349154,1709757042444,-1024.87,0.00024928,2]
[317349155,1709757042453,-1024.87,0.00024928,2]
[317349156,1709757042462,-1024.87,0.00024928,2]
[317349157,1709757042471,-1024.87,0.00024928,2]
[317349159,1709757042481,-1024.87,0.00024928,2]
[317349160,1709757042490,-1024.87,0.00024928,2]
[317349161,1709757042499,-1024.87,0.00024928,2]
[317349163,1709757042509,-1024.87,0.00024928,2]
[317349164,1709757042518,-500.0,0.00024928,2]
[317349166,1709757042528,-1024.87,0.00024928,2]
[317349168,1709757042537,-230.580236,0.00024928,2]
[317349170,1709757042547,-1024.87,0.00024928,2]
[317349171,1709757042556,-1024.87,0.00024928,2]
[317349173,1709757042565,-1024.87,0.00024928,2]
[317349174,1709757042575,-1024.87,0.00024928,2]
[317349176,1709757042584,-1024.87,0.00024928,2]
[317349177,1709757042593,-1024.87,0.00024928,2]
[317349179,1709757042602,-1024.87,0.00024928,2]
[317349180,1709757042612,-500.0,0.00024928,2]
[317349181,1709757042621,-500.0,0.00024928,2]
[317349182,1709757042631,-500.0,0.00024928,2]
[317349183,1709757042641,-500.0,0.00024928,2]
[317349184,1709757042650,-500.0,0.00024928,2]
[317349185,1709757042659,-500.0,0.00024928,2]
[317349186,1709757042669,-500.0,0.00024928,2]
[317349187,1709757042678,-500.0,0.00024928,2]
[317349188,1709757042688,-500.0,0.00024928,2]
[317349189,1709757042697,-314.34830401,0.00024928,2]
[317349191,1709757042706,-299.244835,0.00024928,2]
[317349193,1709757042715,-500.0,0.00024928,2]
[317349194,1709757042724,-349.9272954,0.00024928,2]
[317349195,1709757042733,-500.0,0.00024928,2]
[317349196,1709757042743,-500.0,0.00024928,2]
[317349197,1709757042753,-505.86882035,0.00024928,2]
[317349198,1709757042763,-500.0,0.00024928,2]
[317349199,1709757042773,-5944.35,0.00024928,2]
[317349200,1709757042784,-500.0,0.00024928,2]
[317349201,1709757042794,-500.0,0.00024928,2]
[317349202,1709757042803,-2403.39,0.00024928,2]
[317349203,1709757042815,-2403.39,0.00024928,2]
[317349205,1709757042829,-2403.39,0.00024928,2]
[317349206,1709757042839,-2403.39,0.00024928,2]
[317349207,1709757042848,-2403.39,0.00024928,2]
[317349208,1709757042858,-2403.39,0.00024928,2]
[317349209,1709757042868,-2403.39,0.00024928,2]
[317349210,1709757042878,-2403.39,0.00024928,2]
[317349211,1709757042887,-2403.39,0.00024928,2]
[317349212,1709757042899,-500.0,0.00024928,2]
[317349213,1709757042909,-500.0,0.00024928,2]
[317349214,1709757042918,-2403.39,0.00024928,2]
[317349215,1709757042928,-500.0,0.00024928,2]
[317349216,1709757042938,-2403.39,0.00024928,2]
[317349217,1709757042947,-500.0,0.00024928,2]
[317349218,1709757042956,-2403.39,0.00024928,2]
[317349219,1709757042965,-500.0,0.00024928,2]
[317349220,1709757042976,-500.0,0.00024928,2]
[317349221,1709757042984,-2403.39,0.00024928,2]
[317349222,1709757042994,-500.0,0.00024928,2]
[317349223,1709757043002,-2403.39,0.00024928,2]
[317349225,1709757043012,-500.0,0.00024928,2]
[317349227,1709757043021,-2403.39,0.00024928,2]
[317349228,1709757043030,-500.0,0.00024928,2]
[317349230,1709757043039,-2403.39,0.00024928,2]
[317349232,1709757043049,-586.34253422,0.00024928,2]
[317349234,1709757043059,-452.26991289,0.00024928,2]
[317349235,1709757043068,-2403.39,0.00024928,2]
[317349236,1709757043077,-2403.39,0.00024928,2]
[317349237,1709757043087,-2403.39,0.00024928,2]
[317349238,1709757043096,-2403.39,0.00024928,2]
[317349239,1709757043107,-2403.53610393,0.00024928,2]
[317349240,1709757043116,-500.0,0.00024928,2]
[317349241,1709757043125,-500.0,0.00024928,2]
[317349242,1709757043134,-500.0,0.00024928,2]
[317349243,1709757043143,-503.23539256,0.00024928,2]
[317349244,1709757043152,-500.0,0.00024928,2]
[317349245,1709757043161,-500.0,0.00024928,2]
[317349246,1709757043170,-500.0,0.00024928,2]
[317349247,1709757043180,-500.0,0.00024928,2]
[317349248,1709757043189,-500.0,0.00024928,2]
[317349249,1709757043199,-500.0,0.00024928,2]
[317349250,1709757043208,-506.05732185,0.00024928,2]
[317349251,1709757043218,-500.0,0.00024928,2]
[317349252,1709757043227,-500.0,0.00024928,2]
[317349253,1709757043236,-500.0,0.00024928,2]
[317349254,1709757043246,-500.0,0.00024928,2]
[317349255,1709757043255,-276.06703781,0.00024928,2]
[317349256,1709757043265,-500.0,0.00024928,2]
[317349257,1709757043274,-500.0,0.00024928,2]
[317349258,1709757043283,-500.0,0.00024928,2]
[317349259,1709757043292,-500.0,0.00024928,2]
[317349260,1709757043301,-500.0,0.00024928,2]
[317349261,1709757043312,-500.0,0.00024928,2]
[317349262,1709757043322,-500.0,0.00024928,2]
[317349263,1709757043331,-500.0,0.00024928,2]
[317349265,1709757043341,-500.0,0.00024928,2]
[317349267,1709757043350,-500.0,0.00024928,2]
[317349268,1709757043359,-500.0,0.00024928,2]
[317349269,1709757043368,-500.0,0.00024928,2]
[317349270,1709757043377,-500.0,0.00024928,2]
[317349271,1709757043387,-500.0,0.00024928,2]
[317349272,1709757043397,-500.0,0.00024928,2]
[317349273,1709757043406,-500.0,0.00024928,2]
[317349274,1709757043415,-500.0,0.00024928,2]
[317349275,1709757043424,-500.0,0.00024928,2]
[317349276,1709757043434,-500.0,0.00024928,2]
[317349277,1709757043444,-500.0,0.00024928,2]
[317349278,1709757043454,-222.75390218,0.00024928,2]
[317349279,1709757043463,-1744.61,0.00024928,2]
[317349280,1709757043472,-622.75,0.00024928,2]
[317349281,1709757043481,-205.59281177,0.00024928,2]
[317349282,1709757043491,-377.54615885,0.00024928,2]
[317349283,1709757043500,-500.0,0.00024928,2]
[317349284,1709757043509,-342.44713262,0.00024928,2]
[317349285,1709757043518,-500.0,0.00024928,2]
[317349286,1709757043527,-500.0,0.00024928,2]
[317349287,1709757043537,-500.0,0.00024928,2]
[317349288,1709757043546,-500.0,0.00024928,2]
[317349289,1709757043556,-500.0,0.00024928,2]
[317349290,1709757043565,-500.0,0.00024928,2]
[317349291,1709757043574,-500.0,0.00024928,2]
[317349292,1709757043583,-500.0,0.00024928,2]
[317349293,1709757043592,-500.0,0.00024928,2]
[317349294,1709757043601,-500.0,0.00024928,2]
[317349295,1709757043610,-500.0,0.00024928,2]
[317349296,1709757043620,-386.0555957,0.00024928,2]
[317349297,1709757043630,-500.0,0.00024928,2]
[317349298,1709757043639,-500.0,0.00024928,2]
[317349299,1709757043649,-500.0,0.00024928,2]
[317349300,1709757043658,-155.08362612,0.00024928,2]
[317349301,1709757043668,-500.0,0.00024928,2]
[317349302,1709757043678,-500.0,0.00024928,2]
[317349303,1709757043688,-500.0,0.00024928,2]
[317349304,1709757043698,-2545.97,0.00024928,2]
[317349305,1709757043708,-2553.44,0.00024928,2]
[317349306,1709757043717,-500.0,0.00024928,2]
[317349307,1709757043726,-500.0,0.00024928,2]
[317349308,1709757043736,-507.1129616,0.00024928,2]
[317349309,1709757043745,-500.0,0.00024928,2]
[317349310,1709757043755,-500.0,0.00024928,2]
[317349311,1709757043764,-500.0,0.00024928,2]
[317349312,1709757043774,-500.0,0.00024928,2]
[317349313,1709757043783,-500.0,0.00024928,2]
[317349314,1709757043793,-500.0,0.00024928,2]
[317349315,1709757043802,-594.49317364,0.00024928,2]
[317349316,1709757043816,-232.38300238,0.00024929,2]
[317349317,1709757043825,-2595.57809913,0.00024929,2]
[317349318,1709757043834,-623.74333508,0.00024929,2]
[317349320,1709757043844,-2635.54947194,0.00024929,2]
[317349322,1709757043855,-338.95232531,0.00024929,2]
[317349329,1709757043930,-246.85054315,0.00024929,2]
[317349330,1709757043950,-682.18594777,0.00024929,2]
[317349331,1709757043959,-151.0,0.00024929,2]
[317349333,1709757043969,-151.0,0.00024929,2]
[317349334,1709757043978,-151.0,0.00024929,2]
[317349335,1709757043987,-151.0,0.00024929,2]
[317349336,1709757043996,-151.0,0.00024929,2]
[317349337,1709757044005,-151.0,0.00024929,2]
[317349338,1709757044014,-151.0,0.00024929,2]
[317349339,1709757044024,-151.0,0.00024929,2]
[317349340,1709757044033,-5944.35,0.00024929,2]
[317349341,1709757044042,-5944.35,0.00024929,2]
[317349342,1709757044052,-5944.35,0.00024929,2]
[317349343,1709757044063,-5944.35,0.00024929,2]
[317349344,1709757044072,-5944.35,0.00024929,2]
[317349345,1709757044082,-5944.35,0.00024929,2]
[317349346,1709757044092,-5944.35,0.00024929,2]
[317349347,1709757044101,-5944.35,0.00024929,2]
[317349348,1709757044110,-5944.35,0.00024929,2]
[317349349,1709757044120,-5944.35,0.00024929,2]
[317349350,1709757044129,-5944.35,0.00024929,2]
[317349351,1709757044138,-5944.35,0.00024929,2]
[317349352,1709757044147,-5944.35,0.00024929,2]
[317349353,1709757044157,-5944.35,0.00024929,2]
[317349354,1709757044167,-5944.43967491,0.00024929,2]
[317349355,1709757044177,-1744.61,0.00024929,2]
[317349356,1709757044187,-1744.61,0.00024929,2]
[317349357,1709757044196,-1744.61,0.00024929,2]
[317349358,1709757044205,-1744.61,0.00024929,2]
[317349359,1709757044214,-1744.61,0.00024929,2]
[317349360,1709757044224,-1744.61,0.00024929,2]
[317349361,1709757044233,-1744.61,0.00024929,2]
[317349362,1709757044242,-1744.61,0.00024929,2]
[317349363,1709757044251,-1744.61,0.00024929,2]
[317349364,1709757044260,-1744.61,0.00024929,2]
[317349365,1709757044269,-1744.61,0.00024929,2]
[317349366,1709757044278,-1744.61,0.00024929,2]
[317349367,1709757044287,-1744.61,0.00024929,2]
[317349368,1709757044296,-1744.61,0.00024929,2]
[317349369,1709757044305,-1744.61,0.00024929,2]
[317349370,1709757044316,-2545.97,0.00024929,2]
[317349371,1709757044325,-2545.97,0.00024929,2]
[317349372,1709757044335,-2545.97,0.00024929,2]
[317349373,1709757044344,-2545.97,0.00024929,2]
[317349374,1709757044354,-2545.97,0.00024929,2]
[317349375,1709757044363,-2545.97,0.00024929,2]
[317349376,1709757044373,-2545.97,0.00024929,2]
[317349377,1709757044383,-2545.97,0.00024929,2]
[317349378,1709757044392,-2545.97,0.00024929,2]
[317349379,1709757044402,-2545.97,0.00024929,2]
[317349380,1709757044411,-2545.97,0.00024929,2]
[317349381,1709757044420,-2545.97,0.00024929,2]
[317349382,1709757044430,-2545.97,0.00024929,2]
[317349383,1709757044439,-2545.97,0.00024929,2]
[317349384,1709757044449,-2546.20130956,0.00024929,2]
[317349385,1709757044458,-1648.63,0.00024929,2]
[317349386,1709757044468,-1648.63,0.00024929,2]
[317349387,1709757044477,-1648.63,0.00024929,2]
[317349388,1709757044486,-1648.63,0.00024929,2]
[317349389,1709757044495,-1648.63,0.00024929,2]
[317349390,1709757044504,-1648.63,0.00024929,2]
[317349391,1709757044513,-1648.63,0.00024929,2]
[317349392,1709757044523,-1648.63,0.00024929,2]
[317349393,1709757044532,-1648.63,0.00024929,2]
[317349394,1709757044541,-1648.63,0.00024929,2]
[317349395,1709757044550,-1648.63,0.00024929,2]
[317349396,1709757044562,-1648.63,0.00024929,2]
[317349397,1709757044572,-1648.72709663,0.00024929,2]
[317349398,1709757044581,-180.96580906,0.0002493,2]
[317349399,1709757044591,-175.41812368,0.0002493,2]
[317349400,1709757044600,-151.0,0.0002493,2]
[317349401,1709757044610,-151.0,0.0002493,2]
[317349402,1709757044620,-151.0,0.0002493,2]
[317349403,1709757044629,-151.0,0.0002493,2]
[317349404,1709757044639,-151.0,0.0002493,2]
[317349405,1709757044649,-151.0,0.0002493,2]
[317349406,1709757044659,-151.0,0.0002493,2]
[317349407,1709757044668,-151.0,0.0002493,2]
[317349408,1709757044678,-277.554222,0.0002493,2]
[317349409,1709757044688,-2553.44,0.0002493,2]
[317349410,1709757044699,-2553.44,0.0002493,2]
[317349411,1709757044708,-2553.44,0.0002493,2]
[317349412,1709757044718,-2553.44,0.0002493,2]
[317349413,1709757044728,-2553.44,0.0002493,2]
[317349414,1709757044738,-2553.44,0.0002493,2]
[317349415,1709757044747,-2553.44,0.0002493,2]
[317349416,1709757044756,-2553.44,0.0002493,2]
[317349417,1709757044766,-2553.61314312,0.0002493,2]
[317349418,1709757044775,-5022.01203407,0.00024931,2]
[317349419,1709757044784,-153.0,0.00024932,2]
[317349420,1709757044793,-153.0,0.00024932,2]
[317349421,1709757044803,-640.3030839,0.00024934,2]
[317349422,1709757044816,-3627.52853788,0.00024934,2]
[317349423,1709757044832,-191.44250006,0.00024934,2]
[317349424,1709757044841,-2646146.60455465,0.00024936,60]
[317349425,1709757044951,-703.5775733,0.00023922,2]
[317349426,1709757044960,-500.0,0.00024657,2]
[317349427,1709757044970,-8461.22449659,0.00024936,60]
[317349428,1709757044980,-4711.07538947,0.00024936,60]
[317349492,1709758012320,-703.5775733,0.00019429,2]
[317349493,1709758012455,-320.79134332,0.0001943,2]
[317349494,1709758012486,-20493.48050387,0.0001943,2]
[317349495,1709758012519,-176.34932727,0.00019431,2]
[317349496,1709758012550,-3142.51763785,0.00019431,2]
[317349497,1709758012581,-15247.63303065,0.00019432,2]
[317349498,1709758012611,-10108.931085,0.00019436,2]
[317349499,1709758012646,-166.666666,0.00019442,2]
[317349500,1709758012677,-781.92972777,0.0002,2]
[317349501,1709758030521,447.70019815,0.000189,2]
[317349562,1709758174126,-682.18594777,0.00020385,2]
[317349563,1709758174146,-477.48,0.00020386,2]
[317349564,1709758174169,-165.174041,0.00020479,2]
[317349565,1709758174190,-3142.51763785,0.00021185,2]
[317349566,1709758174211,-781.92972777,0.00021185,2]
[317349567,1709758174231,-703.5775733,0.00021186,2]
[317349568,1709758174253,-320.79134332,0.00021187,2]
[317349570,1709758174273,-176.34932727,0.00021187,2]
[317349572,1709758174295,-20493.48050387,0.00021187,2]
[317349573,1709758174316,-24900.0,0.00021188,2]
[317349574,1709758174337,-8906.59755398,0.00021375,2]
[317349634,1709758232207,-11.92384602,0.00021375,2]
[317349635,1709758232217,-875.11625792,0.00022997,2]
[317349637,1709758232226,-4541.56855178,0.00022998,2]
[317349638,1709758232235,-682.18594777,0.00022998,2]
[317349639,1709758232244,-2634.92944181,0.00022998,2]
[317349641,1709758232253,-702.6585048,0.00022998,2]
[317349642,1709758232262,-320.79134332,0.00022998,2]
[317349643,1709758232271,-781.92972777,0.00022998,2]
[317349645,1709758232281,-176.22728247,0.00022998,2]
[317349646,1709758232290,-199.42843758,0.00022999,2]
[317349648,1709758232300,-500.0,0.00022999,2]
[317349649,1709758232308,-535.75923948,0.00022999,2]
[317349651,1709758232318,-170.13806355,0.00022999,2]
[317349652,1709758232327,-18564.13241097,0.00022999,2]
[317349653,1709758232338,-276.84141772,0.00023,3]
[317349654,1709758232347,-41793.53303485,0.00023,5]
[317349655,1709758232358,-6515.53309373,0.00023,5]
[317349656,1709758232369,-55920.71103355,0.00023,5]
[317349671,1709758238299,-3410146.02567593,0.00023,5]
[317349672,1709758238312,-37461.73947652,0.00023,5]
[317349673,1709758238325,-4183.98092377,0.00023,5]
[317349674,1709758238339,-15220.0,0.00023,5]
[317349851,1709758246312,-186.81036217,0.00020284,2]
[317349852,1709758246322,-320.79134332,0.00022998,2]
[317349853,1709758246332,-703.4462778,0.00022998,2]
[317349854,1709758246344,-167.7798192,0.00022999,2]
[317349855,1709758246353,-215.52,0.00022999,2]
[317349856,1709758246362,-215.52,0.00022999,2]
[317349857,1709758246372,-215.52,0.00022999,2]
[317349858,1709758246381,-215.52,0.00022999,2]